Cogmind - Beta 16 @@@ ROGUE MODE // 2025.12.19 @ 01:14:41 Player: souux Result: Destroyed by 3B-0J0(R) with Subdweller Laser Performance ------------- Evolutions (0) 0 Regions Visited (2) 400 Robots Destroyed (35) 175 Value Destroyed (953) 953 Prototype IDs (12) 240 Alien Tech Used (0) 0 Bonus (-61) -61 TOTAL SCORE: 1707 Bonus ------- Friendly Fire -61 Cogmind --------- Core Integrity 0/250 Matter 298/300 Energy 250/250 System Corruption 0% Temperature Cool (6) Movement Treading (320) Ox2 Location -10/Subcaves Parts ------- > --- POWER (1) -------- Ion Engine > --- PROPULSION (2) --- Light Treads Light Treads > --- UTILITY (2) ------ Huge Storage Unit Makeshift Light Armor Plating > --- WEAPON (2) ------- Beam Cannon Subdweller Machine Gun > --- INVENTORY (25) --- Subdweller Power Source Arachnoskeleton Subdweller Monowheel Subdweller Monowheel Subdweller Monowheel Improved Heat Sink High-capacity Storage Unit High-capacity Matter Pod (200) Visual Processing Unit Subdweller Optics Seismic Detector Seismic Detector Makeshift Kinetic Plating Scrap Shield Makeshift Hacking Suite Tractor Beam Tractor Beam Subdweller Laser Subdweller Beam Cannon Assault Rifle Subdweller Machine Gun Makeshift Sword Peak State ------------ > --- POWER ------------ Ion Engine > --- PROPULSION ------- Wheel Subdweller Monowheel > --- UTILITY ---------- Huge Storage Unit Makeshift Light Armor Plating > --- WEAPON ----------- Subdweller Machine Gun Subdweller Machine Gun > --- INVENTORY -------- Subdweller Power Source Subdweller Power Source Light Treads Light Treads Light Treads Improved Heat Sink High-capacity Storage Unit High-capacity Matter Pod Visual Processing Unit Subdweller Optics Seismic Detector Seismic Detector Makeshift Kinetic Plating Scrap Shield Makeshift Hacking Suite Tractor Beam Subdweller Laser Beam Cannon Subdweller Beam Cannon Subdweller Beam Cannon Subdweller Beam Cannon Assault Rifle Makeshift Sword [Rating: 17] Favorites ----------- Power Ion Engine Engine Ion Engine Propulsion Wheel Treads Light Treads Leg Aluminum Leg Wheel Wheel Utility Huge Storage Unit Device Seismic Detector Storage Huge Storage Unit Protection Makeshift Light Armor Plating Weapon Subdweller Machine Gun Energy Gun Subdweller Laser Energy Cannon Subdweller Beam Cannon Ballistic Gun Subdweller Machine Gun Build | -11 -10 -10 ------- Run | Yrd Mat Sub Slots Evolved . | . . . Power . | . . . Propulsion . | . . . Utility . | . . . Weapon . | . . . Parts Attached 39 | 9 11 19 Power 5 | 1 1 3 Engine 5 | 1 1 3 Core . | . . . Reactor . | . . . Propulsion 13 | 4 4 5 Treads 4 | . . 4 Leg 2 | . 2 . Wheel 7 | 4 2 1 Hover . | . . . Flight . | . . . Utility 8 | 2 4 2 Device 2 | 1 . 1 Storage 4 | 1 3 . Processor . | . . . Hackware . | . . . Protection 2 | . 1 1 Artifact . | . . . Weapon 13 | 2 2 9 Energy Gun 1 | . . 1 Energy Cannon 3 | . 1 2 Ballistic Gun 9 | 2 1 6 Ballistic Cannon . | . . . Launcher . | . . . Special Weapon . | . . . Impact Weapon . | . . . Slashing Weapon . | . . . Piercing Weapon . | . . . Special Melee Weapon . | . . . Unidentified Prototypes . | . . . Parts Lost 4 | . . 4 Power 1 | . . 1 Propulsion 2 | . . 2 Utility 1 | . . 1 Weapon . | . . . Highest Loss Streak 1 | . . 1 To Critical Strikes . | . . . Average Backups 20 | 5 15 22 Power 2 | . 1 2 Propulsion 6 | 3 7 6 Utility 8 | . 4 9 Weapon 3 | . 1 3 Tool/Special . | . . . Unused Backups 20 | . 1 19 Power 2 | . . 2 Propulsion 4 | . . 4 Utility 10 | . . 10 Weapon 4 | . 1 3 Tool/Special . | . . . Average Slot Usage (%) 99 | . 99 99 Engine 13 | . 14 13 Treads 12 | . . 15 Wheel 15 | . 27 12 Device 11 | . 13 10 Storage 14 | . 14 14 Protection 2 | . . 3 Energy Gun 2 | . . 3 Energy Cannon 11 | . 6 12 Ballistic Gun 13 | . 21 11 Peak Build Rating 17 | 7 9 17 Average Rating 11 | 5 8 12 On Entrance 5 | . 7 9 Avg Prop Armor Cover (%) . | . . . Naked Turns . | . . . Heaviest Build 102 | 11 89 102 Greatest Support 40 | 26 20 40 Greatest Overweight (x) 4 | . 4 4 Average Overweight (x) 2 | . 2 2 Largest Inventory Capacity 25 | 8 25 25 Average Capacity 23 | 7 20 24 Most Carried 25 | 8 20 25 Average Carried 20 | 5 15 22 Final Capacity 25 | 8 20 25 Final Carried 25 | 8 19 25 Class Distribution -------------------- 94% | Mutant 5% | Scavenger-Mutant Dominant Class ---------------- Mutant | -10/Materials Mutant | -10/Subcaves Resources | -11 -10 -10 ----------- Run | Yrd Mat Sub Matter Collected 1222 | 310 461 451 Remotely . | . . . Salvage Created 1272 | 146 334 792 Parts 86 | 14 21 51 Haulers Intercepted 1 | . 1 . Recyclers Shooed . | . . . Parts Field Recycled . | . . . Retrieved Matter . | . . . Parts Self-Destructed 26 | . . 26 Prevented . | . . . Parts Restored . | . . . Kills | -11 -10 -10 ------- Run | Yrd Mat Sub Combat Hostiles Destroyed 26 | . 6 20 Guns 15 | . 4 11 Cannons 11 | . 2 9 Classes Destroyed 8 | 2 5 1 Tunneler 4 | 4 . . Hauler 1 | . 1 . Recycler 2 | 1 1 . Operator 1 | . 1 . Watcher 1 | . 1 . Swarmer 5 | . 3 2 Grunt 4 | . 3 1 Subdweller 17 | . . 17 Best Kill Streak 5 | 5 3 3 Combat Bots Only 3 | . 3 3 Max Kills in Single Turn 1 | 1 1 1 Gunslinging . | . . . Exploded . | . . . Melee . | . . . Uniques/NPCs Destroyed . | . . . Combat | -11 -10 -10 -------- Run | Yrd Mat Sub Hostile Shots Fired 137 | . 37 100 Missed 51 | . 17 34 Hits 86 | . 20 66 Projectile 86 | . 20 66 Critical Strikes 2 | . . 2 Damage Taken 1524 | . 196 1328 Core 250 | . 21 229 Absorbed by Shields . | . . . Core Remaining (%) 100 | 100 . . Volleys Fired 142 | 10 32 100 Largest 2 | 2 2 2 Hottest 160 | 40 80 160 Shots Fired 255 | 20 64 171 Gun 170 | 20 51 99 Cannon 85 | . 13 72 Launcher . | . . . Special . | . . . Kinetic 144 | 20 51 73 Thermal 111 | . 13 98 Explosive . | . . . Electromagnetic . | . . . Robot Hit Streak 49 | 7 7 49 Robot Miss Streak 4 | 1 4 3 Penetration Max . | . . . Secondary Targets 3 | . 1 2 Max Gunslinging Chain 1 | . 1 1 Shots Hit Robots 161 | 16 39 106 Core Hits 58 | 8 18 32 Critical Kills 1 | . 1 . Critical Parts Destroyed 1 | . . 1 Critical Strikes 2 | . 1 1 Destroy 2 | . 1 1 Melee Attacks . | . . . Impact . | . . . Slashing . | . . . Piercing . | . . . Sneak Attacks . | . . . Combat Hostiles . | . . . Follow-up Attacks . | . . . Damage Inflicted 2956 | 143 508 2305 Guns 1731 | 142 335 1254 Cannons 1224 | . 173 1051 Explosions . | . . . Melee . | . . . Ramming 1 | 1 . . Kinetic 1364 | 142 335 887 Thermal 1591 | . 173 1418 Explosive . | . . . Electromagnetic . | . . . Impact . | . . . Slashing . | . . . Piercing . | . . . Highest Corruption . | . . . Average Corruption . | . . . Corruption Purged . | . . . Corruption Blocked . | . . . Overload Shots . | . . . Overflow Damage 7 | . . 7 Projectiles 7 | . . 7 Explosions . | . . . Melee . | . . . Knockbacks . | . . . Impact . | . . . Kinetic . | . . . Secondary . | . . . Self-Inflicted Damage . | . . . Shots . | . . . Rammed 1 | 1 . . Targets Rammed 1 | 1 . . Kicked . | . . . Crushed . | . . . Highest Temperature 216 | . 150 216 Average Temperature 59 | . 53 65 Received Heat Transfer 372 | . 57 315 Siege Activations . | . . . Martial Activations . | . . . Shielding Activations . | . . . Robots Disrupted . | . . . Combat Hostiles . | . . . Robots Corrupted . | . . . Combat Hostiles . | . . . Parts Fried . | . . . Impact Corruptions . | . . . Robots Melted . | . . . Combat Hostiles . | . . . Parts Melted 6 | . . 6 Heat Transferred 2411 | . 370 2041 Parts Sabotaged . | . . . Parts Stolen . | . . . Parts Stripped . | . . . Power Chain Reactions . | . . . Alert | -11 -10 -10 ------- Run | Yrd Mat Sub Maximum Alert Level . | . . . Low Security (%) 100 | 100 100 . Level 1 . | . . . Level 2 . | . . . Level 3 . | . . . Level 4 . | . . . Level 5 . | . . . High Security . | . . . Max Security . | . . . Peak Influence 87 | 15 87 . Initial . | . . . Average 17 | 3 18 . Influence Increases 339 | 25 224 90 Destroy 0b10 Robot/C 180 | . 120 60 Destroy 0b10 Robot/NC 45 | 25 20 . Destroy Leader 34 | . 34 . Successful Hack 20 | . 20 . Lose Combat Pursuer 60 | . 30 30 Influence Decreases 339 | 25 215 99 Entered New Map 5 | . . 5 Time Decay 315 | 25 196 94 Purge Threat 19 | . 19 . Squads Dispatched 1 | . 1 . Investigation 1 | . 1 . Extermination . | . . . Reinforcement . | . . . Assault . | . . . Garrison . | . . . Intercept . | . . . Searches Triggered . | . . . Construction Impeded . | . . . Haulers Reinforced . | . . . Active Scanning Responses . | . . . Cargo Convoy Interrupts . | . . . Stealth | -11 -10 -10 --------- Run | Yrd Mat Sub Distress Signals 1 | . 1 . Communications Jammed . | . . . Distress Signals . | . . . Times Spotted 47 | . 20 27 Peak Tracking Total 4 | . 3 4 Tactical Retreats 4 | . 2 2 Traps | -11 -10 -10 ------- Run | Yrd Mat Sub Traps Triggered 3 | . 2 1 Indirectly . | . . . Trap Hack Attempts . | . . . Triggered . | . . . Disarmed . | . . . Reprogrammed . | . . . Reused . | . . . Traps Extracted . | . . . Installed . | . . . Triggered . | . . . Machines | -11 -10 -10 ---------- Run | Yrd Mat Sub Machines Disabled 1 | . . 1 Max in Single Turn 1 | . . 1 Machines Repaired . | . . . Machines Dismantled . | . . . Machines Sabotaged . | . . . Overloaded Fab Kills . | . . . Hacking | -11 -10 -10 --------- Run | Yrd Mat Sub Machines Accessed 8 | . 7 1 Terminals 7 | . 7 . Fabricators . | . . . Repair Stations . | . . . Recycling Units . | . . . Scanalyzers . | . . . Garrison Access . | . . . Total Hacks 24 | . 23 1 Successful 14 | . 13 1 Failed 10 | . 10 . Catastrophic 1 | . 1 . Database Lockouts . | . . . Manual 17 | . 17 . Terminals 23 | . 23 . Fabricators . | . . . Repair Stations . | . . . Recycling Units . | . . . Scanalyzers . | . . . Garrison Access . | . . . Terminal Hacks 6 | . 5 1 Unreport Threat 1 | . 1 . Locate Traps 1 | . 1 . Maintenance Status 1 | . 1 . Hauler Manifests 2 | . 2 . Proto ID Catalog 1 | . . 1 Fabricator Hacks . | . . . Repair Station Hacks . | . . . Recycling Unit Hacks . | . . . Scanalyzer . | . . . Garrison Access Hacks . | . . . Unauthorized Hacks 8 | . 8 . Terminals 8 | . 8 . Botnet 3 | . 3 . Skim 5 | . 5 . Fabricators . | . . . Repair Stations . | . . . Recycling Units . | . . . Scanalyzers . | . . . Garrison Access . | . . . Data Cores Recovered 1 | . 1 . Used . | . . . Hacking Detections 7 | . 7 . Full Trace Events 1 | . 1 . Feedback Events . | . . . Feedback Blocked . | . . . Robot Schematics Acquired . | . . . Robots Built . | . . . Authchips . | . . . Time . | . . . Total Robot Build Rating . | . . . Part Schematics Acquired . | . . . Parts Built . | . . . Authchips . | . . . Time . | . . . Total Part Build Rating . | . . . Part Studies Acquired . | . . . Parts Repaired . | . . . Time . | . . . Parts Recycled . | . . . Recycled Matter . | . . . Retrieved Matter . | . . . Retrieved Components . | . . . Parts Scanalyzed . | . . . Part Schematics Acquired . | . . . Parts Damaged . | . . . Bothacking | -11 -10 -10 ------------ Run | Yrd Mat Sub Used RIF Installer . | . . . Robots Hacked . | . . . Non-combat . | . . . Combat . | . . . Robot Hacks Applied . | . . . Relay Couplers Released . | . . . Fabnet Peak Effective % . | . . . Robots Rewired . | . . . Allies Hacked . | . . . Hacks Repelled . | . . . Allies | -11 -10 -10 -------- Run | Yrd Mat Sub Total Allies . | . . . Largest Group . | . . . Highest-Rated Group . | . . . Highest-Rated Ally . | . . . Total Orders . | . . . Ally Attacks . | . . . Total Damage . | . . . Kills . | . . . Allies Corrupted . | . . . Allies Melted . | . . . Intel | -11 -10 -10 ------- Run | Yrd Mat Sub Active Infowar (turns) 2909 | 37 971 1901 Seismic 2909 | 37 971 1901 Robot Analysis Total . | . . . Derelict Logs Recovered 3 | . . 3 Drone Launches . | . . . Drone Recoveries . | . . . Exploration | -11 -10 -10 ------------- Run | Yrd Mat Sub Turns Passed 4985 | 110 990 3885 Spaces Moved 2521 | 68 719 1734 Core 2 | 2 . . Treads 560 | . . 560 Legs . | . . . Wheels 1959 | 66 719 1174 Hover . | . . . Flight . | . . . Fastest Speed 50 | 50 80 110 Average Speed 166 | 85 113 191 Slowest Speed 320 | 100 140 320 Overloaded Moves . | . . . Propulsion Burnouts . | . . . Robots Hopped . | . . . Potential Cave-ins . | . . . Cave-ins Triggered . | . . . Exploration Rate (%) 61 | 5 99 80 Regions Visited 2 Branch Regions 1 Pre-discovered Areas 4 | . 2 2 Known Exits Taken 1 | . 1 . Unknown Exits Taken 1 | 1 . . Scrap Searched 15 | . . 15 Spaces Dug 1 | . . 1 Terrain Destroyed 3 | . . 3 Melee . | . . . Projectile 3 | . . 3 AOE . | . . . Terrain Rammed . | . . . Walls Destroyed . | . . . Machines Disabled . | . . . Actions | -11 -10 -10 --------- Run | Yrd Mat Sub Total 3050 | 102 828 2120 Wait 257 | 5 43 209 Move 2519 | 67 718 1734 Hop . | . . . Pick Up 46 | 8 12 26 Fast Attach 9 | 7 2 . Attach 5 | . . 5 Detach . | . . . Swap 43 | 2 15 26 Drop 28 | 2 6 20 Fire 142 | 10 32 100 Melee . | . . . Ram 1 | 1 . . Kick . | . . . Crush . | . . . Escape Stasis . | . . . Rewire . | . . . Trap . | . . . Miscellaneous . | . . . Route ------- -11/Scrapyard -10/Materials (discovered 5 exits: [*Mat x3] / *Min / *Sub) -10/Subcaves (discovered 4 exits: [*Mat x2] / [*Rec] / [*Scr]) History --------- Turn | Location | Event 19 | -11/Scrapyard | Discovered new exit (range 16) 111 | -11/Scrapyard | Entered Materials 112 | -10/Materials | Met a group of wandering Federalists 209 | -10/Materials | Discovered new exit (range 4) 304 | -10/Materials | Build established: Mutant 308 | -10/Materials | Discovered new exit (range 6) 568 | -10/Materials | Discovered new exit (range 16) 669 | -10/Materials | Learned 2 Storage zone layouts 745 | -10/Materials | Identified exit to Subcaves 745 | -10/Materials | Identified exit to Mines 751 | -10/Materials | Learned location of Mines (-9) 769 | -10/Materials | Learned 4 Subcaves zone layouts 1101 | -10/Materials | Entered Subcaves 1102 | -10/Subcaves | Continued accompanying wandering Federalists (4) 1102 | -10/Subcaves | Approached by a straggling Scientist 1279 | -10/Subcaves | Discovered new exit (range 16) 1305 | -10/Subcaves | Lost 3 allies 1339 | -10/Subcaves | Wandering Federalist uncovered a shortcut to Scraptown 2502 | -10/Subcaves | Shifting Twisted Machinery released Sub. Monowheel 2746 | -10/Subcaves | Shifting Twisted Machinery released Sub. Beam Cannon 2765 | -10/Subcaves | Shifting Twisted Machinery released Piercing Trap 2984 | -10/Subcaves | Shifting Twisted Machinery released Sub. Power Source 3302 | -10/Subcaves | Discovered new exit (range 15) 3609 | -10/Subcaves | Discovered new exit (range 12) 3636 | -10/Subcaves | Disturbed a concealed Subdweller 4048 | -10/Subcaves | Learned location of Zion (-7) 4048 | -10/Subcaves | Met a Zionite searching for "candidates" 4187 | -10/Subcaves | A swath of the cavern ceiling suddenly collapsed 4318 | -10/Subcaves | Core integrity fell below 50% 4456 | -10/Subcaves | Core integrity fell below 20% 4757 | -10/Subcaves | Visited 4L-MR0's lab 4872 | -10/Subcaves | Found Arachnoskeleton 4986 | -10/Subcaves | Destroyed by 3B-0J0(R) with Subdweller Laser Last Messages --------------- Logs... >>Proto ID Catalog Downloading prototype IDs... Meta Core Arachnoskeleton Cargo Legs Tripod Weapons Platform Hoverbase Flightbrick Gun Armor Tower Shield Power Bank Rainbow Chip VL-GR5's Exoskeleton "Deathgrip" Powered Cannon 04863_ Testing Chamber breached. 04872_ Dropped Sub. Power Source. 04872_ Acquired Arachnoskeleton. 04928_ Acquired 8 matter. 04983_ C6-SMT(R) destroyed. Map ----- +----------------------------------------------------+ | ?????????????????????????????????????????????????? | | ?????????????????????????????????????????????????? | | ?????????????????????????????????????????????????? | | ?????????????????????????????????????????????????? | | ????????????????????????????###??###?????####????? | | ????????????????????????##?## #### #????## ##?##? | | ???????????????????????? ### ###### ###?? | | ???????????????????????? """ ##? ? | | ???????????????????????? ## "" ##??? | | ???????????????????????? #### #####??? | | ???????????????????????? #### ###?##???? | | ???????????????????????? "# # " ##### ? ?? | | ???????????????????????? # "" ## " ## # ?? ?? | | ???????????????????????? ###" #### ### ????? | | ???????????????????????? #### ####### ""# ???? | | ???????????????????????? ??????????????????????? | | ???????????????????????# #??????? ??????????????? | | ?????????????????????## ##?#?? ???????????????? | | ?????????????????????# # # ?????????????????? | | ????????????????????? =???????????????????? | | ?????????????####????# ?????????????????????? | | ?????????????# #???## ???????????????????????? | | ?######??????# #??## #????????????????????????? | | ?# #""#?????## ##?# #?????#???????????????????? | | ?#*#""#?????# ### &#### ## #????????????????? | | ?# ""#?#####< ] *R!@ #????????????????? | | ?# X"#?# # & &&& # # #???????????????? | | ?# ""#?# # # ???????????????????? | | ?#" "#?# &! ??????????????????? | | ?#" "#?#[&#< #?????????????????? | | ?###+#####%## ##############?????????????????? | | ### "##"! !# ##???????????????????????####???? | | #"" "" ""] [## ##???????????????????????## ##??? | | #"" "" " = ## #????????????????????????# #??? | | #""" " " ### ###?????????????????????### ##??? | | ## " """#### ###???????????????????# ##??? | | ?#########??### #???????????????????# ##?? | | ??????????????### ##??????????????????## #?? | | ???????????????## #?????????????????## ##? | | ??????????????## ##????????????????# ## | | ??????????????# ##???????????????## # | | ??????????????## ##???????????????##### | | ???????????????# #??????????????????## | | ??????????????## ## #??????????????## | | ??????????????# #?### #????#####?????# | | ????????????### ###??# #???#""" ????# | | ????????????# #??? #??#" ####= *[## # | | ????????????### #???? #??#" # ## %=[## | | ?????????????## ###????? #?#"" % %% ! | | ?????????????# ##??????? ##< % % ##%## | +----------------------------------------------------+ Best States ------------- Heat Dissipation 39 Energy Generation 10 Energy Capacity 250 Matter Stores 300 Matter Capacity 300 Sight Range 16 Terrain Scan Density 10 Armor Coverage 150 Evasion (%) 44 Recoil Reduction 2 Item Schematics ----------------- None Robot Schematics ------------------ None Fabricated ------------ Nothing Repaired ---------- Nothing Studied --------- None Alien Tech Used ----------------- None Achievements -------------- None Challenges ------------ None Game ------ Seed FlakIonicShovel Manual? 0 Play Time 00:30:15 Cumulative 142.3 hours Start 2025.12.19 @ 00:43:14 End 2025.12.19 @ 01:14:41 Sessions 1 Manual Loads 0 Difficulty Rogue Special Mode None Game No. 107 Rogue 107 Adventurer 0 Explorer 0 Win Type - Total 2 Types 2/0/0/0/0/0/0/0/0/0 Lore% 45 Gallery% 49 Achievement% 40 Wizard Run 0 Options --------- Layout 2 ASCII 0 Keyboard 0 Movement Mouse Keybinds 0 Fullscreen 2 Font 24/Smallcaps Map View 50x44 Zoom Use 0% Tactical HUD 1 Map Filters NONE Filters NONE Steam 1 RUN: 01a96ce5-f288-4a62-9427-14cb38d6747c